bitfinex/quotes_BTCUSD_20251120
["timestamp","ask_amount","ask_price","bid_price","bid_amount"]
[1763623025015,0.01175,92085.0,92084.0,0.01085964]
[1763623025250,0.01175,92103.0,92088.0,0.01085917]
[1763623025463,0.00368,92100.0,92092.0,0.323]
[1763623025675,0.00368,92100.0,92075.0,0.01086071]
[1763623025676,0.01175,92089.0,92075.0,0.01086071]
[1763623025926,0.01175,92089.0,92080.0,0.01086012]
[1763623025927,0.01652,92083.0,92080.0,0.01086012]
[1763623026129,0.01175,92089.0,92087.0,0.21718592]
[1763623026347,0.00368,92088.0,92087.0,0.21718592]
[1763623026735,0.01175,92089.0,92087.0,0.21718592]
[1763623027062,0.01175,92089.0,92088.0,0.323]
[1763623027263,0.01543,92089.0,92088.0,0.323]
[1763623028215,0.0247429,92101.0,92098.0,0.01085799]
[1763623028415,0.0247429,92101.0,92095.0,0.01085835]
[1763623028416,0.00368,92100.0,92095.0,0.01085835]
[1763623028625,0.01652,92096.0,92094.0,0.323]
[1763623028832,0.01085847,92094.0,92084.0,0.21719079]
[1763623029030,0.01085823,92096.0,92091.0,0.01085882]
[1763623029234,0.03424823,92096.0,92086.0,0.323]
[1763623029437,0.03424823,92096.0,92070.0,0.21722423]
[1763623029438,0.23981065,92081.0,92070.0,0.21722423]
[1763623029640,0.01652,92071.0,92062.0,0.00023147]
[1763623029790,0.01086118,92071.0,92067.0,0.01086165]
[1763623029995,0.02339,92070.0,92065.0,0.33386189]
[1763623030176,0.02339,92070.0,92067.0,0.01086165]
[1763623030377,0.02339,92070.0,92068.0,0.21723074]
[1763623030784,0.02827,92069.0,92068.0,0.21723074]
[1763623031242,0.01175,92069.0,92068.0,0.21723074]
[1763623031358,0.01543,92069.0,92068.0,0.21723074]
[1763623031967,0.03195,92069.0,92068.0,0.21723074]
[1763623032368,0.01543,92069.0,92068.0,0.21723074]
[1763623033009,0.01643,92069.0,92068.0,0.21723074]
[1763623033184,0.03295,92069.0,92068.0,0.21723074]
[1763623033631,0.05634,92069.0,92064.0,0.333862]
[1763623033830,0.01652,92065.0,92064.0,0.323]
[1763623034233,0.03991,92065.0,92064.0,0.323]
[1763623034510,0.05077189,92065.0,92062.0,0.00023147]
[1763623034754,0.01652,92063.0,92062.0,0.00023147]
[1763623035135,0.03991,92063.0,92062.0,0.00023147]
[1763623035361,0.01175,92076.0,92071.0,0.22808248]
[1763623035695,0.01175,92076.0,92075.0,0.21721422]
[1763623036032,0.01543,92076.0,92075.0,0.21721422]
[1763623037518,0.01175,92076.0,92075.0,0.54021422]
[1763623037764,0.01175,92076.0,92075.0,0.323]
[1763623037765,0.03195,92076.0,92075.0,0.323]
[1763623039502,0.00368,92076.0,92075.0,0.323]
[1763623039708,0.04359,92076.0,92075.0,0.323]
[1763623040342,0.05445059,92076.0,92072.0,0.01086106]
[1763623040543,0.02827,92073.0,92071.0,0.01086118]
[1763623040750,0.03991,92072.0,92071.0,0.01086118]
[1763623040955,0.03991,92072.0,92071.0,0.55108288]
[1763623041953,0.03991,92072.0,92071.0,0.323]
[1763623042582,0.03991,92072.0,92071.0,0.10219987]
[1763623042784,0.03991,92072.0,92070.0,0.21722382]
[1763623043020,0.01175,92073.0,92072.0,0.2172213]
[1763623043219,0.01543,92073.0,92072.0,0.2172213]
[1763623043458,0.03195,92073.0,92072.0,0.2172213]
[1763623043806,0.05534,92073.0,92072.0,0.2172213]
[1763623044612,0.03195,92073.0,92072.0,0.2172213]
[1763623044813,0.05534,92073.0,92072.0,0.2172213]
[1763623046074,0.05534,92073.0,92062.0,0.00023147]
[1763623046075,0.02738118,92071.0,92062.0,0.00023147]
[1763623046272,0.01652,92063.0,92062.0,0.00023147]
[1763623046678,0.03991,92063.0,92062.0,0.00023147]
[1763623047300,0.0202,92063.0,92062.0,0.00023147]
[1763623047724,0.04359,92063.0,92062.0,0.00023147]
[1763623049993,0.0202,92063.0,92062.0,0.21747637]
[1763623050945,0.01175,92073.0,92069.0,0.21722745]
[1763623051147,0.01175,92073.0,92070.0,0.0108613]
[1763623051350,0.00368,92072.0,92071.0,0.21722193]
[1763623051568,0.01175,92081.0,92070.0,0.0108613]
[1763623051569,0.01175,92081.0,92080.0,0.21720243]
[1763623051752,0.01543,92081.0,92080.0,0.21720243]
[1763623051964,0.05478,92081.0,92080.0,0.21720243]
[1763623052399,0.05478,92081.0,92079.0,0.21720248]
[1763623052547,0.02466,92080.0,92079.0,0.21720248]
[1763623052764,0.04129,92080.0,92076.0,0.01086059]
[1763623052969,0.01663,92077.0,92076.0,0.01086059]
[1763623057095,0.01086106,92072.0,92063.0,0.05835034]
[1763623057300,0.01151,92068.0,92062.0,0.05858181]
[1763623057507,0.01663,92063.0,92062.0,0.05858181]
[1763623057719,0.23387254,92063.0,92062.0,0.00023147]
[1763623057918,0.25853254,92063.0,92062.0,0.00023147]
[1763623059231,0.01663,92063.0,92062.0,0.00023147]
[1763623059441,0.00368,92067.0,92066.0,0.21723546]
[1763623059654,0.00368,92067.0,92064.0,0.010862]
[1763623060089,0.00368,92067.0,92064.0,0.22810041]
[1763623060541,0.00368,92067.0,92062.0,0.00023147]
[1763623060542,0.21724254,92063.0,92062.0,0.00023147]
[1763623060751,0.23387254,92063.0,92062.0,0.00023147]
[1763623060973,0.25853254,92063.0,92062.0,0.00023147]
[1763623061417,0.04129,92063.0,92062.0,0.00023147]
[1763623067008,0.09339249,92063.0,92062.0,0.00023147]
[1763623067457,0.41639249,92063.0,92062.0,0.00023147]
[1763623070124,0.09707249,92063.0,92062.0,0.00023147]
[1763623071373,0.42007249,92063.0,92062.0,0.00023147]
[1763623072190,0.42007249,92063.0,91875.0,0.4]
[1763623072191,0.21731335,92033.0,92031.0,0.05835034]
[1763623072452,0.01086436,92044.0,92015.0,0.01086779]
[1763623072453,0.01086673,92024.0,92019.0,0.06921766]
[1763623072688,0.01151,92021.0,92018.0,0.01086743]
[1763623072897,0.03617,92021.0,92018.0,0.01086743]
[1763623073117,0.01663,92019.0,92015.0,0.05835034]
[1763623073324,0.01663,92016.0,92015.0,0.21735586]
[1763623074432,0.01151,92021.0,92020.0,0.21734405]
[1763623074641,0.01151,92021.0,92018.0,0.01086743]
[1763623074846,0.03617,92021.0,92020.0,0.00121586]
[1763623075872,0.0528,92021.0,92020.0,0.00121586]
[1763623076073,0.0528,92021.0,92020.0,0.00221586]
[1763623076313,0.01151,92030.0,92027.0,0.01086637]
[1763623076563,0.00368,92029.0,92027.0,0.01086637]
[1763623076767,0.00368,92029.0,92028.0,0.21732516]
[1763623077189,0.00368,92029.0,92028.0,0.21830934]
[1763623077408,0.00368,92029.0,92028.0,0.00098418]
[1763623077620,0.02031,92029.0,92028.0,0.00098418]
[1763623077838,0.01663,92029.0,92028.0,0.00098418]
[1763623078036,0.01151,92030.0,92029.0,0.2173228]
[1763623078240,0.01519,92030.0,92029.0,0.2173228]
[1763623078433,0.03182,92030.0,92029.0,0.2173228]
[1763623078613,0.03182,92030.0,92029.0,0.21827802]
[1763623079434,0.02814,92030.0,92029.0,0.21827802]
[1763623079632,0.03182,92030.0,92029.0,0.21827802]
[1763623080408,0.01151,92037.0,92029.0,0.21827802]
[1763623080409,0.01151,92037.0,92036.0,0.21730627]
[1763623080628,0.01151,92036.0,92034.0,0.22817438]
[1763623080832,0.02466,92047.0,92044.0,0.01086436]
[1763623081041,0.01151,92047.0,92045.0,0.22814927]
[1763623081248,0.00368,92046.0,92045.0,0.22814927]
[1763623081623,0.00368,92046.0,92040.0,0.01086484]
[1763623081828,0.01086436,92044.0,92040.0,0.01086484]
[1763623082038,0.00368,92045.0,92042.0,0.22815462]
[1763623082218,0.00368,92045.0,92043.0,0.21728783]
[1763623082780,0.01652,92044.0,92040.0,0.01086484]
[1763623082931,0.01652,92043.0,92041.0,0.01086472]
[1763623083153,0.01086495,92039.0,92032.0,0.01086578]
[1763623083353,0.01652,92041.0,92036.0,0.01086531]
[1763623083577,0.01086495,92039.0,92036.0,0.01086531]
[1763623083718,0.01652,92037.0,92036.0,0.01086531]
[1763623084617,0.00368,92045.0,92043.0,0.21828974]
[1763623084795,0.01151,92047.0,92046.0,0.21728266]
[1763623084938,0.01519,92047.0,92046.0,0.21728266]
[1763623085990,0.00368,92047.0,92046.0,0.21728266]
[1763623086198,0.01188,92054.0,92053.0,0.21726614]
[1763623086349,0.01556,92054.0,92051.0,0.2281323]
[1763623086558,0.02642318,92054.0,92053.0,0.00026045]
[1763623086759,0.01556,92054.0,92053.0,0.00026045]
[1763623087237,0.24934377,92054.0,92053.0,0.00026045]
[1763623087452,0.27229377,92054.0,92053.0,0.00026045]
[1763623088623,0.26861377,92054.0,92053.0,0.00026045]
[1763623088818,0.27229377,92054.0,92053.0,0.00026045]
[1763623089020,0.27229377,92054.0,92053.0,0.00126045]
[1763623089222,0.05503,92054.0,92053.0,0.00126045]
[1763623089455,0.03208,92054.0,92053.0,0.00126045]
[1763623091380,0.0284,92054.0,92053.0,0.00126045]
[1763623091503,0.03208,92054.0,92053.0,0.00126045]
[1763623092543,0.01556,92054.0,92053.0,0.00126045]
[1763623095003,0.03208,92054.0,92053.0,0.00126045]
[1763623096485,0.05503,92054.0,92053.0,0.00126045]
[1763623097805,0.05503,92054.0,92053.0,0.00026045]
[1763623098878,0.10713249,92054.0,92053.0,0.00026045]
[1763623099071,0.43013249,92054.0,92053.0,0.00026045]
[1763623105501,0.43013249,92054.0,92053.0,0.00026045]
[1763623105944,0.42645249,92054.0,92053.0,0.00026045]
[1763623106147,0.10713249,92054.0,92053.0,0.00026045]
[1763623106719,0.10345249,92054.0,92053.0,0.00026045]
[1763623106920,0.10713249,92054.0,92053.0,0.00026045]
[1763623108762,0.05503,92054.0,92053.0,0.00026045]
[1763623108964,0.05135,92054.0,92053.0,0.00026045]
[1763623109169,0.05503,92054.0,92053.0,0.00026045]
[1763623111270,0.02237259,92059.0,92057.0,0.21725451]
[1763623111271,0.01151,92059.0,92057.0,0.21725451]
[1763623111418,0.21884,92069.0,92066.0,0.22809544]
[1763623111598,0.21884,92069.0,92064.0,0.22810034]
[1763623111599,0.01502,92068.0,92064.0,0.22810034]
[1763623111797,0.01086165,92067.0,92060.0,0.01086248]
[1763623112137,0.01581,92061.0,92060.0,0.21724961]
[1763623112495,0.01581,92061.0,92059.0,0.01086259]
[1763623112718,0.01581,92061.0,92057.0,0.01086283]
[1763623112719,0.03906,92060.0,92053.0,0.05835034]
[1763623112936,0.01086436,92044.0,92041.0,0.05835034]
[1763623113128,0.22816371,92040.0,92037.0,0.05835034]
[1763623113349,0.01576,92038.0,92037.0,0.05835034]
[1763623113585,0.02738,92038.0,92037.0,0.05835034]
[1763623113792,0.05068,92038.0,92037.0,0.05835034]
[1763623114417,0.05068,92038.0,92035.0,0.06921577]
[1763623114706,0.01576,92036.0,92035.0,0.05835034]
[1763623115130,0.03906,92036.0,92035.0,0.05835034]
[1763623116116,0.01576,92036.0,92035.0,0.0800812]
[1763623116649,0.03906,92036.0,92035.0,0.05835034]
[1763623116845,0.03906,92036.0,92034.0,0.21730943]
[1763623117052,0.01676,92036.0,92035.0,0.0007815]
[1763623117657,0.01576,92036.0,92035.0,0.0007815]
[1763623119071,0.01676,92036.0,92035.0,0.0007815]
[1763623119278,0.04006,92036.0,92035.0,0.0007815]
[1763623119690,0.03906,92036.0,92035.0,0.0007815]
[1763623119899,0.04006,92036.0,92035.0,0.0007815]
[1763623120101,0.00468,92036.0,92035.0,0.0007815]
[1763623120527,0.00468,92036.0,92035.0,0.02251236]
[1763623122403,0.04374,92036.0,92035.0,0.0007815]
[1763623123467,0.04274,92036.0,92035.0,0.0007815]
[1763623124171,0.042681,92036.0,92035.0,0.0007815]
[1763623126046,0.09478349,92036.0,92035.0,0.0007815]
[1763623126480,0.21736468,92012.0,92009.0,0.05863188]
[1763623126680,0.00368,92011.0,92008.0,0.22824046]
[1763623127029,0.02616826,92011.0,92008.0,0.01086862]
[1763623127173,0.02616826,92011.0,92006.0,0.22824431]
[1763623127385,0.01576,92009.0,92006.0,0.22824431]
[1763623127573,0.01576,92009.0,92007.0,0.23910998]
[1763623127798,0.0153,92011.0,92010.0,0.21736767]
[1763623127972,0.03106,92011.0,92010.0,0.23910443]
[1763623128176,0.03106,92011.0,92010.0,0.21736767]
[1763623129249,0.03106,92011.0,92010.0,0.21836767]
[1763623129455,0.05436,92011.0,92010.0,0.002]
[1763623130616,0.27172531,92011.0,92010.0,0.002]
[1763623131241,0.3238278,92011.0,92010.0,0.002]
[1763623131953,0.27172531,92011.0,92010.0,0.002]
[1763623132173,0.01086897,92005.0,92002.0,0.01086932]
[1763623132335,0.02738,92003.0,92002.0,0.01086932]
[1763623132552,0.03106,92003.0,92002.0,0.22825589]
[1763623132783,0.03106,92003.0,92002.0,0.22921152]
[1763623134407,0.03206,92003.0,92002.0,0.22921152]
[1763623135590,0.03306,92003.0,92002.0,0.22921152]
[1763623135788,0.02938,92003.0,92002.0,0.22921152]
[1763623136017,0.03306,92003.0,92002.0,0.22921152]
[1763623136240,0.03306,92003.0,92002.0,0.01182495]
[1763623137144,0.03306,92003.0,92002.0,0.00095563]
[1763623137297,0.05636,92003.0,92002.0,0.00095563]
[1763623137507,0.05636,92003.0,92002.0,0.2183422]
[1763623139903,0.03306,92003.0,92002.0,0.2183422]
[1763623140648,0.002,92003.0,92002.0,0.2183422]
[1763623141082,0.002,92003.0,92002.0,0.24008085]
[1763623143571,0.001,92003.0,92002.0,0.24008085]
[1763623143774,0.00368,92008.0,92007.0,0.21737476]
[1763623143979,0.00368,92008.0,92007.0,0.23911223]
[1763623144140,0.00368,92008.0,92007.0,0.21737476]
[1763623144341,0.1963,92020.0,92012.0,0.01086814]
[1763623144524,0.00368,92019.0,92017.0,0.22821651]
[1763623145021,0.01549,92019.0,92017.0,0.22821651]
[1763623145221,0.01548,92018.0,92017.0,0.22821651]
[1763623145665,0.03871,92018.0,92017.0,0.22821651]
[1763623146224,0.01548,92018.0,92017.0,0.22821651]
[1763623146839,0.01162,92026.0,92025.0,0.21733224]
[1763623147039,0.0153,92026.0,92025.0,0.21733224]
[1763623147983,0.01162,92026.0,92025.0,0.21733224]
[1763623148178,0.0163,92026.0,92025.0,0.21733224]
[1763623148377,0.0173,92026.0,92025.0,0.21733224]
[1763623149543,0.05601,92026.0,92025.0,0.21733224]
[1763623152374,0.05601,92026.0,92023.0,0.22820166]
[1763623152524,0.01548,92024.0,92023.0,0.22820166]
[1763623152744,0.21733933,92022.0,92008.0,0.35563318]
[1763623153062,0.01181,92015.0,92014.0,0.21735656]
[1763623153224,0.01549,92015.0,92014.0,0.21735656]
[1763623154232,0.03097,92015.0,92014.0,0.21735656]
[1763623154424,0.01696439,92015.0,92014.0,0.21735656]
[1763623155569,0.00368,92015.0,92014.0,0.21735656]
[1763623155972,0.00368,92015.0,92014.0,0.21796461]
[1763623156192,0.00468,92015.0,92014.0,0.23970043]
[1763623156410,0.00568,92015.0,92014.0,0.23970043]
[1763623157054,0.00568,92015.0,92014.0,0.21796461]
[1763623158504,0.02116,92015.0,92014.0,0.21796461]
[1763623158705,0.04439,92015.0,92014.0,0.00060805]
[1763623159736,0.04439,92015.0,92014.0,0.21796627]
[1763623161021,0.02116,92015.0,92014.0,0.21796627]
[1763623161227,0.00568,92015.0,92014.0,0.21796627]
[1763623162117,0.002,92015.0,92014.0,0.21796627]
[1763623162330,0.00568,92015.0,92014.0,0.21796627]
[1763623163245,0.02116,92015.0,92014.0,0.00060805]
[1763623163462,0.04439,92015.0,92014.0,0.00060805]
[1763623164121,0.26174586,92015.0,92014.0,0.00060805]
[1763623167948,0.26074586,92015.0,92014.0,0.00060805]
[1763623168508,0.25974586,92015.0,92014.0,0.00060805]
[1763623169345,0.03871,92015.0,92014.0,1.00060805]
[1763623169548,0.04239,92015.0,92014.0,1.00060805]
[1763623174317,0.03871,92015.0,92014.0,1.00060805]
[1763623174525,0.01181,92016.0,92014.0,1.00060805]
[1763623174700,0.00368,92015.0,92014.0,1.0]
[1763623175475,0.02054,92015.0,92014.0,1.0]
[1763623175704,0.00568,92015.0,92014.0,1.21735822]
[1763623176770,0.02154,92015.0,92014.0,1.21735822]
[1763623176977,0.02154,92015.0,92014.0,1.0]
[1763623177158,0.04502,92015.0,92014.0,1.0]
[1763623177717,0.25869586,92015.0,92014.0,1.0]
[1763623177940,0.26237586,92015.0,92014.0,1.0]
[1763623178107,0.04502,92015.0,92014.0,1.0]
[1763623179643,0.04502,92015.0,92014.0,1.21735822]
[1763623180334,0.002,92015.0,92014.0,1.21735822]
[1763623180788,0.00568,92015.0,92014.0,1.21796627]
[1763623181419,0.002,92015.0,92014.0,1.21796627]
[1763623181627,0.01162,92026.0,92020.0,0.21734405]
[1763623181799,0.19998,92021.0,92020.0,0.21734405]
[1763623182047,0.19998,92021.0,92020.0,0.21777834]
[1763623182990,0.00368,92021.0,92020.0,0.21777834]
[1763623184101,0.00368,92021.0,92020.0,0.21877834]
[1763623184309,0.01162,92026.0,92025.0,0.21733224]
[1763623184504,0.0153,92026.0,92025.0,0.21733224]
[1763623184711,0.02348,92039.0,92036.0,0.01086531]
[1763623185061,0.2071646,92042.0,92035.0,0.01086543]
[1763623185062,0.016,92038.0,92035.0,0.01086543]
[1763623185528,0.01586,92036.0,92035.0,0.01086543]
[1763623185880,0.01586,92036.0,92030.0,0.22818645]
[1763623185881,0.01586,92036.0,92030.0,0.01086602]
[1763623186089,0.03934,92036.0,92033.0,0.22817706]
[1763623186289,0.03934,92036.0,92035.0,0.21730863]
[1763623186491,0.01954,92036.0,92035.0,0.21730863]
[1763623187016,0.04302,92036.0,92035.0,0.21730863]
[1763623187421,0.01954,92036.0,92035.0,0.21730863]
[1763623189036,0.00368,92036.0,92035.0,0.21730863]
[1763623190173,0.01232,92038.0,92037.0,0.21730391]
[1763623190386,0.016,92038.0,92037.0,0.21730391]
[1763623191674,0.01232,92038.0,92037.0,0.21730391]
[1763623191986,0.01232,92043.0,92037.0,0.21730391]
[1763623191987,0.01232,92043.0,92042.0,0.2172921]
[1763623192222,0.016,92043.0,92042.0,0.2172921]
[1763623192407,0.016,92043.0,92040.0,0.01086484]
[1763623192753,0.016,92043.0,92040.0,0.22815959]
[1763623192975,0.016,92043.0,92041.0,0.21729259]
[1763623193180,0.016,92043.0,92037.0,0.01086519]
[1763623193382,0.016,92043.0,92040.0,0.22816094]
[1763623193596,0.016,92043.0,92041.0,0.21729247]
[1763623194417,0.01232,92043.0,92041.0,0.21729247]
[1763623194623,0.01232,92050.0,92049.0,0.01086377]
[1763623194875,0.016,92050.0,92049.0,0.01086377]
[1763623194996,0.016,92050.0,92041.0,0.22815918]
[1763623194997,0.22813935,92049.0,92041.0,0.22815918]
[1763623195208,0.22813935,92049.0,92040.0,0.01086484]
[1763623195209,0.05,92044.0,92040.0,0.01086484]
[1763623195418,0.05,92044.0,92041.0,0.01086472]
[1763623195625,0.22814734,92046.0,92042.0,0.0108646]
[1763623195847,0.25162734,92046.0,92041.0,0.01086472]
[1763623196168,0.01086436,92044.0,92040.0,0.01086484]
[1763623196322,0.02348,92045.0,92042.0,0.22815505]
[1763623196723,0.02348,92045.0,92042.0,0.0108646]
[1763623196938,0.03434425,92045.0,92040.0,0.01086484]
[1763623197139,0.01086377,92049.0,92045.0,0.01086425]
[1763623197329,0.01086401,92047.0,92044.0,0.01086436]
[1763623197530,0.22814147,92049.0,92044.0,0.01086436]
[1763623198012,0.016,92050.0,92047.0,0.01086401]
[1763623198221,0.016,92050.0,92049.0,0.21727558]
[1763623200078,0.01232,92050.0,92048.0,0.21727656]
[1763623200309,0.00368,92049.0,92048.0,0.21727656]
[1763623200577,0.01954,92049.0,92047.0,0.22814275]
[1763623201847,0.01954,92049.0,92044.0,0.22815002]
[1763623201848,0.03040377,92049.0,92044.0,0.22815002]
[1763623202052,0.01954,92049.0,92046.0,0.01086413]
[1763623202589,0.01954,92049.0,92046.0,0.22814523]
[1763623202778,0.01586,92049.0,92047.0,0.21727814]
[1763623202940,0.00368,92048.0,92047.0,0.21727814]
[1763623203776,0.04379,92048.0,92046.0,0.001]
[1763623203929,0.04379,92048.0,92015.0,0.09617306]
[1763623203930,0.01086566,92033.0,92028.0,0.01086625]
[1763623204138,0.0108646,92042.0,92022.0,0.01086696]
[1763623204139,0.02737,92028.0,92027.0,0.01109797]
[1763623204368,0.015,92028.0,92027.0,0.02581377]
[1763623204567,0.015,92028.0,92027.0,0.03283072]
[1763623205436,0.015,92028.0,92027.0,0.01109797]
[1763623206702,0.05511,92028.0,92027.0,0.0002316]
[1763623207308,0.00368,92028.0,92027.0,0.0002316]
[1763623207509,0.05,92029.0,92028.0,0.21732516]
[1763623207942,0.05368,92029.0,92028.0,0.21732516]
[1763623208150,0.03599737,92029.0,92028.0,0.21732516]
[1763623208856,0.00368,92029.0,92028.0,0.21732516]
[1763623210673,0.02406,92036.0,92035.0,0.21730863]
[1763623211078,0.00368,92036.0,92035.0,0.21730863]
[1763623211477,0.04379,92036.0,92035.0,0.21730863]
[1763623211903,0.04379,92036.0,92034.0,0.02660685]
[1763623212149,0.01132,92037.0,92034.0,0.02660685]
[1763623212150,0.01132,92037.0,92035.0,0.21730863]
[1763623212280,0.01232,92050.0,92044.0,0.01086436]
[1763623212281,0.01132,92047.0,92044.0,0.01086436]
[1763623212480,0.00368,92046.0,92045.0,0.21728502]
[1763623213436,0.01973,92046.0,92045.0,0.21728502]
[1763623214597,0.01973,92046.0,92044.0,0.01086436]
[1763623214998,0.01973,92046.0,92044.0,0.22815008]
[1763623217015,0.01973,92046.0,92032.0,0.01086578]
[1763623217016,0.2173056,92037.0,92032.0,0.01086578]
[1763623217176,0.02774,92036.0,92034.0,0.01086554]
[1763623217379,0.02774,92036.0,92033.0,0.01086566]
[1763623217802,0.01605,92034.0,92033.0,0.01086566]
[1763623217962,0.01605,92034.0,92032.0,0.22817998]
[1763623217963,0.04011,92034.0,92032.0,0.01086578]
[1763623218168,0.01605,92033.0,92030.0,0.22818496]
[1763623218367,0.01605,92032.0,92030.0,0.22818496]
[1763623219385,0.00368,92036.0,92035.0,0.21730863]
[1763623219764,0.00368,92036.0,92035.0,0.23224745]
[1763623219938,0.01132,92047.0,92045.0,0.21728502]
[1763623220084,0.00368,92046.0,92045.0,0.21728502]
[1763623220285,0.01973,92046.0,92045.0,0.21728502]
[1763623220524,0.04379,92046.0,92045.0,0.21728502]
[1763623220736,0.21726227,92055.0,92044.0,0.01086436]
[1763623220737,0.02406,92069.0,92058.0,0.21725433]
[1763623220937,0.01132,92069.0,92068.0,0.22809118]
[1763623221166,0.02737,92069.0,92068.0,0.22809118]
[1763623221444,0.03105,92069.0,92068.0,0.22809118]
[1763623221645,0.05511,92069.0,92068.0,0.22809118]
[1763623221822,0.05511,92069.0,92068.0,0.01086153]
[1763623222040,0.01086153,92068.0,92063.0,0.01086212]
[1763623222242,0.01086153,92068.0,92059.0,0.41796872]
[1763623222243,0.01605,92064.0,92059.0,0.41796872]
[1763623222641,0.01605,92064.0,92059.0,0.21724967]
[1763623223004,0.01086283,92057.0,92045.0,0.11055785]
[1763623223175,0.22812448,92055.0,92050.0,0.22813596]
[1763623223336,0.22812448,92055.0,92051.0,0.01086354]
[1763623223533,0.01605,92051.0,92047.0,0.01086401]
[1763623223754,0.02406,92054.0,92051.0,0.01086354]
[1763623224154,0.01605,92052.0,92051.0,0.22813248]
[1763623224320,0.01605,92052.0,92049.0,0.21727558]
[1763623224517,0.01605,92052.0,92049.0,0.01086377]
[1763623224724,0.01605,92050.0,92049.0,0.01086377]
[1763623225128,0.01605,92050.0,92044.0,0.323]
[1763623225330,0.01605,92045.0,92044.0,0.323]
[1763623225593,0.01973,92045.0,92044.0,0.323]
[1763623226389,0.00368,92045.0,92044.0,0.323]
[1763623230167,0.0221833,92053.0,92049.0,0.01086377]
[1763623230369,0.00368,92052.0,92049.0,0.01086377]
[1763623230640,0.01604,92050.0,92049.0,0.01086377]
[1763623231551,0.01604,92050.0,92049.0,1.01086377]
[1763623231837,0.01132,92053.0,92049.0,1.01086377]
[1763623231838,0.01132,92053.0,92052.0,0.2172685]
[1763623232054,0.02331,92052.0,92051.0,0.01675623]
[1763623232350,0.02331,92052.0,92049.0,1.0]
[1763623232351,0.0151,92050.0,92049.0,1.0]
[1763623232756,0.03841,92050.0,92049.0,1.0]
[1763623233523,0.03941,92050.0,92049.0,1.0]
[1763623233949,0.03841,92050.0,92049.0,1.0]
[1763623234734,0.03941,92050.0,92049.0,1.0]
[1763623235162,0.03841,92050.0,92049.0,1.0]
[1763623235440,0.0151,92050.0,92049.0,1.0]
[1763623237437,0.03841,92050.0,92049.0,1.0]
[1763623240466,0.04168946,92050.0,92049.0,1.0]
[1763623241703,0.03841,92050.0,92049.0,1.0]
[1763623242250,0.04209,92050.0,92049.0,1.0]
[1763623243550,0.03841,92050.0,92049.0,1.0]
[1763623243750,0.01878,92050.0,92049.0,1.0]
[1763623244191,0.04209,92050.0,92049.0,1.0]
[1763623245442,0.05,92051.0,92050.0,0.21727322]
[1763623245649,0.05368,92051.0,92050.0,0.21727322]
[1763623247344,0.05468,92051.0,92050.0,0.21727322]
[1763623247539,0.05568,92051.0,92050.0,0.21727322]
[1763623249074,0.052,92051.0,92050.0,0.21727322]
[1763623249278,0.05568,92051.0,92050.0,0.21727322]
[1763623251618,0.05568,92051.0,92049.0,1.21727357]
[1763623251823,0.21727322,92050.0,92049.0,1.0]
[1763623252047,0.05568,92051.0,92049.0,1.0]
[1763623252213,0.21727322,92050.0,92049.0,1.0]
[1763623252369,0.05468,92051.0,92049.0,1.0]
[1763623252724,0.05568,92051.0,92049.0,1.21727451]
[1763623252886,0.05568,92051.0,92050.0,0.0191083]
[1763623253383,0.05468,92051.0,92050.0,0.0191083]
[1763623253827,0.05568,92051.0,92050.0,0.0191083]
[1763623254004,0.051,92051.0,92050.0,0.12258118]
[1763623254422,0.03432057,92051.0,92050.0,0.12258118]
[1763623254621,0.03332057,92051.0,92050.0,0.12258118]
[1763623254784,0.03432057,92051.0,92050.0,0.12258118]
[1763623255248,0.002,92051.0,92050.0,0.12258118]
[1763623256807,0.002,92051.0,92049.0,1.0]
[1763623257120,0.002,92051.0,92049.0,1.21727433]
[1763623257290,0.002,92051.0,92050.0,0.10347288]
[1763623257690,0.00368,92055.0,92052.0,0.01086342]
[1763623258228,0.00368,92055.0,92050.0,0.10347288]
[1763623258634,0.00368,92055.0,92052.0,0.01086342]
[1763623258753,0.23180626,92055.0,92052.0,0.001]
[1763623259172,0.23180626,92055.0,92051.0,0.01086354]
[1763623260174,0.22812851,92054.0,92050.0,0.10347288]
[1763623260375,0.00368,92055.0,92053.0,0.21726476]
[1763623260576,0.24057377,92054.0,92052.0,0.001]
[1763623260846,0.0151,92050.0,92049.0,0.8038922]
[1763623261181,0.00368,92055.0,92052.0,0.22813192]
[1763623261326,0.00368,92055.0,92052.0,0.22813062]
[1763623261726,0.02699,92055.0,92053.0,0.21726424]
[1763623262893,0.01576,92054.0,92053.0,0.21726424]
[1763623263887,0.01227,92063.0,92056.0,0.01086295]
[1763623264178,0.00368,92062.0,92059.0,0.01086259]
[1763623264333,0.00368,92062.0,92060.0,0.01086248]
[1763623264541,0.02756,92062.0,92058.0,0.01205638]
[1763623264749,0.02756,92062.0,92050.0,0.27828211]
[1763623264750,0.01086307,92055.0,92050.0,0.01086366]
[1763623264961,0.02388,92054.0,92053.0,0.001]
[1763623265361,0.01086342,92052.0,92049.0,0.8038922]
[1763623265621,0.01576,92050.0,92049.0,0.8038922]
[1763623265949,0.03964,92050.0,92049.0,0.8038922]
[1763623276601,0.04332,92050.0,92049.0,0.8038922]
[1763623276838,0.26059322,92050.0,92049.0,0.8038922]
[1763623279708,0.34253523,92050.0,92049.0,0.8038922]
[1763623285903,0.39463772,92050.0,92049.0,0.8038922]
[1763623286847,0.71763772,92050.0,92049.0,0.8038922]
[1763623287492,0.71863772,92050.0,92049.0,0.8038922]
[1763623287893,0.71963772,92050.0,92049.0,0.8038922]
[1763623293826,0.73985518,92050.0,92049.0,0.8038922]
[1763623296609,0.73985518,92050.0,92049.0,0.1427622]
[1763623296814,0.93615518,92050.0,92049.0,0.10061576]
[1763623297029,0.93615518,92050.0,92049.0,0.06797093]
[1763623297406,0.96879142,92050.0,92049.0,0.00268127]
[1763623297608,0.96878611,92050.0,92049.0,0.00268127]
[1763623297813,0.96878611,92050.0,92027.0,0.0002316]
[1763623297814,0.21732516,92028.0,92027.0,0.0002316]
[1763623298030,0.24848516,92028.0,92027.0,0.0002316]
[1763623298243,0.27274516,92028.0,92027.0,0.0002316]
[1763623301081,0.32484765,92028.0,92027.0,0.0002316]
[1763623305414,0.64784765,92028.0,92027.0,0.0002316]
[1763623306231,0.66903349,92028.0,92027.0,0.0002316]